bitfinex/quotes_ETHUSD_20250425
["timestamp","ask_amount","ask_price","bid_price","bid_amount"]
[1745593878383,0.792,1805.9,1805.1,0.1]
[1745593878592,0.792,1805.9,1805.2,0.05539035]
[1745593878753,0.792,1805.9,1805.2,2.12803837]
[1745593878951,0.792,1805.9,1805.3,6.44132155]
[1745593879146,0.7621,1806.1,1805.5,0.8008]
[1745593879362,0.7621,1806.1,1805.5,2.87344802]
[1745593879586,0.7621,1806.1,1805.5,2.07264802]
[1745593880175,0.7621,1806.1,1805.4,0.69950596]
[1745593880372,0.7621,1806.1,1805.4,0.0553738]
[1745593880576,0.7621,1806.1,1805.2,0.8141]
[1745593880778,0.7621,1806.1,1805.3,0.05537658]
[1745593880938,0.7621,1806.1,1805.3,6.49669813]
[1745593881339,0.7621,1806.1,1805.4,5.07264802]
[1745593881538,0.30785487,1806.3,1805.7,0.767]
[1745593882042,0.30785487,1806.3,1805.8,0.05535822]
[1745593882377,0.30785487,1806.8,1806.3,0.8003]
[1745593882675,0.30785487,1806.8,1806.5,6.44132155]
[1745593882896,0.7935,1807.2,1806.6,0.64413216]
[1745593884588,0.7935,1807.2,1806.3,0.8003]
[1745593884742,0.7935,1807.2,1806.2,6.44132155]
[1745593884943,0.7935,1807.2,1806.0,7.1588]
[1745593885183,3.7957,1807.0,1806.0,6.35]
[1745593885385,0.8142,1806.9,1805.9,8.51396957]
[1745593885570,0.8142,1806.9,1805.8,6.35]
[1745593885758,0.8142,1806.9,1805.6,23.04832155]
[1745593885962,0.7846,1806.7,1805.6,16.607]
[1745593886185,3.7846,1806.5,1805.7,0.05536586]
[1745593886485,4.09245487,1806.5,1805.5,7.6401648]
[1745593886689,4.09245487,1806.5,1805.6,7.26070152]
[1745593886866,4.09245487,1806.5,1805.6,13.61070152]
[1745593887063,4.09245487,1806.5,1805.6,13.55533803]
[1745593887462,4.09245487,1806.5,1805.6,7.11401648]
[1745593887890,4.09245487,1806.5,1805.6,0.76401648]
[1745593888100,4.09245487,1806.5,1805.7,0.05536138]
[1745593888271,4.09245487,1806.5,1805.6,9.44132155]
[1745593890503,1.09245487,1806.5,1805.7,0.05535593]
[1745593890705,1.09245487,1806.5,1805.6,9.44132155]
[1745593891199,1.09245487,1806.5,1805.7,0.05535597]
[1745593891439,1.09245487,1806.5,1805.7,0.94966775]
[1745593891609,1.09245487,1806.5,1805.9,6.44132155]
[1745593891773,1.09245487,1806.5,1806.0,0.8285]
[1745593892100,1.09245487,1806.5,1806.1,2.07264802]
[1745593892706,0.7846,1806.5,1806.1,2.07264802]
[1745593894472,1.16306,1806.5,1806.1,2.07264802]
[1745593895389,0.7558,1806.4,1805.6,6.35]
[1745593895574,0.7558,1806.4,1805.5,9.35208903]
[1745593895781,0.7558,1806.4,1805.5,9.40745276]
[1745593896991,0.7558,1806.4,1805.5,2.57991282]
[1745593897195,0.7558,1806.4,1805.5,2.63528181]
[1745593897397,0.7558,1806.4,1805.5,2.57991282]
[1745593897819,0.7558,1806.4,1805.6,6.44132155]
[1745593898019,0.7558,1806.4,1805.7,2.77214046]
[1745593898335,0.7558,1806.4,1805.7,2.77213295]
[1745593898630,0.7558,1806.4,1805.9,6.44132155]
[1745593898932,3.30785487,1806.9,1806.0,0.05535346]
[1745593899134,0.30785487,1806.9,1806.5,6.44132155]
[1745593899298,0.787,1807.0,1806.6,2.77211335]
[1745593899499,0.787,1807.5,1806.8,6.44132155]
[1745593900027,3.787,1807.5,1806.8,6.44132155]
[1745593900250,4.09485487,1807.5,1806.8,6.44132155]
[1745593901132,1.09485487,1807.5,1806.8,6.44132155]
[1745593901301,1.09485487,1807.5,1806.9,0.64413216]
[1745593901506,4.09485487,1807.5,1806.9,0.64413216]
[1745593901711,3.787,1807.5,1806.9,0.64413216]
[1745593901908,0.787,1807.5,1806.9,2.71678018]
[1745593902148,0.787,1807.5,1807.1,6.44132155]
[1745593902293,0.787,1807.5,1807.2,0.64413216]
[1745593903323,0.787,1807.5,1807.0,0.05531977]
[1745593903521,0.787,1807.5,1806.9,9.06678018]
[1745593903838,0.787,1807.5,1807.0,0.05532656]
[1745593904264,0.787,1807.5,1806.9,2.07264802]
[1745593904926,0.787,1807.5,1807.0,0.05532659]
[1745593905127,0.787,1807.5,1806.9,2.07264802]
[1745593905360,0.787,1807.5,1806.9,2.91481282]
[1745593905568,0.787,1807.5,1807.0,0.05532757]
[1745593905764,0.787,1807.5,1806.9,2.91481282]
[1745593905954,0.787,1807.5,1807.0,0.05533047]
[1745593906460,0.787,1807.5,1806.9,2.07264802]
[1745593907041,3.7605,1807.4,1806.6,0.64413216]
[1745593907245,0.7605,1807.3,1806.6,0.6994692]
[1745593907834,0.7605,1807.3,1806.6,0.05533704]
[1745593908165,0.7605,1807.3,1806.6,6.49665859]
[1745593908379,0.7605,1807.3,1806.7,0.05532863]
[1745593908669,0.7605,1807.3,1806.6,6.44132155]
[1745593909874,0.7605,1807.3,1806.6,6.4966502]
[1745593910168,0.7605,1807.3,1806.7,0.64966502]
[1745593910935,0.7605,1807.3,1806.6,3.0]
[1745593911267,0.7605,1807.3,1806.7,0.05533162]
[1745593912198,0.7605,1807.3,1806.6,6.348]
[1745593912699,0.7605,1807.3,1806.7,0.05533532]
[1745593913159,0.7605,1807.3,1806.6,3.0]
[1745593913358,0.7605,1807.3,1806.7,0.3]
[1745593914504,0.7605,1807.3,1806.4,8.40764802]
[1745593914661,0.7681,1807.1,1806.4,2.07264802]
[1745593914861,0.7681,1807.0,1806.4,2.07264802]
[1745593915096,0.7681,1807.0,1806.0,2.07264802]
[1745593915256,0.7681,1806.8,1806.0,2.07264802]
[1745593915457,6.335,1806.7,1806.0,2.07264802]
[1745593915691,0.828,1806.5,1806.0,2.07264802]
[1745593920506,0.828,1806.5,1806.0,5.07264802]
[1745593920995,0.7922,1806.7,1806.2,6.44132155]
[1745593921196,0.7922,1806.7,1806.3,0.64413216]
[1745593922159,0.7922,1806.7,1806.2,6.336]
[1745593922559,0.7922,1806.7,1806.0,5.07264802]
[1745593922560,0.7922,1806.7,1806.0,2.07264802]
[1745593923175,1.08041594,1806.6,1806.0,2.07264802]
[1745593923383,0.7719,1806.5,1806.0,2.07264802]
[1745593927305,0.7719,1806.5,1806.1,0.05535434]
[1745593927486,0.7719,1806.5,1806.0,2.07264802]
[1745593928418,0.7719,1806.5,1806.0,2.12799841]
[1745593928622,0.7719,1806.5,1806.0,2.07264802]
[1745593928984,0.7719,1806.5,1806.1,0.05535055]
[1745593929324,0.7884,1806.7,1806.2,2.07264802]
[1745593929903,0.7884,1806.7,1806.2,5.07264802]
[1745593930099,0.7884,1806.7,1806.3,0.05534299]
[1745593930317,0.7884,1806.7,1805.7,0.05534047]
[1745593930318,0.8149,1806.5,1805.7,0.05534047]
[1745593930506,0.8149,1806.5,1805.4,2.07264802]
[1745593931440,0.8164,1806.3,1805.4,2.07264802]
[1745593931732,0.8164,1806.1,1805.1,6.436]
[1745593932225,0.8164,1806.1,1805.1,0.1]
[1745593932423,3.0,1805.9,1805.1,0.1]
[1745593932588,0.8164,1805.8,1805.1,0.1]
[1745593933328,0.759,1805.6,1805.1,0.1]
[1745593939336,0.7664,1805.5,1805.1,0.1]
[1745593939499,0.7664,1805.4,1805.1,0.1]
[1745593942047,0.30851594,1805.6,1805.2,0.05538818]
[1745593942377,0.30851594,1805.6,1805.2,0.41378679]
[1745593942547,0.8249,1805.7,1805.1,2.17264802]
[1745593944118,0.8249,1805.7,1805.1,0.1]
[1745593944390,3.0,1805.7,1805.1,0.1]
[1745593944562,0.7813,1805.6,1805.1,0.1]
[1745593946304,0.8039,1805.5,1805.1,0.1]
[1745593946495,0.8039,1805.3,1805.1,0.1]
[1745593947204,0.7845,1805.1,1804.3,6.826]
[1745593947497,0.7845,1805.1,1804.3,0.5]
[1745593947498,0.7845,1804.9,1804.3,0.5]
[1745593948288,1.49555,1804.9,1804.3,0.5]
[1745593948589,1.09301594,1804.9,1804.3,0.55541474]
[1745593948779,0.7872,1804.8,1804.3,0.5]
[1745593949404,0.7872,1804.8,1804.4,0.05541444]
[1745593949709,0.7872,1804.8,1804.3,0.5]
[1745593949710,0.30851594,1804.9,1804.3,1.3047]
[1745593949868,0.829,1805.5,1804.4,5.67804799]
[1745593950067,0.829,1805.5,1804.5,6.8948048]
[1745593950279,0.829,1805.5,1804.6,2.87734802]
[1745593950678,3.829,1805.5,1804.6,2.87734802]
[1745593950890,0.829,1805.5,1804.6,2.87734802]
[1745593951092,0.7585,1805.4,1804.6,2.07264802]
[1745593951968,0.7585,1805.3,1804.6,2.07264802]
[1745593952312,0.7585,1805.3,1804.4,6.327]
[1745593952513,0.7585,1805.3,1804.5,0.6327]
[1745593953301,0.7585,1805.3,1804.6,0.05540318]
[1745593953605,0.7585,1805.3,1804.5,0.6327]
[1745593954102,0.7585,1805.3,1804.5,3.6327]
[1745593954294,0.7585,1805.3,1804.5,0.6327]
[1745593954492,0.7585,1805.3,1804.6,0.05540138]
[1745593955093,0.7585,1805.3,1804.7,0.55]
[1745593955403,0.7585,1805.3,1804.8,0.0553867]
[1745593955604,0.7604,1805.5,1804.9,6.327]
[1745593955782,0.7604,1805.5,1805.0,0.0553854]
[1745593956103,0.7604,1805.5,1805.0,0.8231854]
[1745593956308,3.7837,1805.9,1805.1,2.07264802]
[1745593956491,4.09220725,1805.9,1805.1,2.07264802]
[1745593956733,1.09220725,1805.9,1805.1,2.07264802]
[1745593957139,1.09220725,1805.9,1805.1,2.48362342]
[1745593957445,0.7969,1805.8,1805.2,0.05537501]
[1745593957738,0.7969,1805.8,1805.3,2.07264802]
[1745593958844,0.7969,1805.8,1805.4,0.05537571]
[1745593959338,1.09580725,1806.3,1805.6,1.3664]
[1745593959500,1.09580725,1806.3,1805.7,8.39964802]
[1745593959704,1.09580725,1806.3,1805.8,0.8399648]
[1745593959906,1.09580725,1806.3,1805.8,2.91261282]
[1745593960140,0.7873,1806.3,1805.8,2.91261282]
[1745593960353,0.7873,1806.3,1805.8,2.07264802]
[1745593960704,0.30850725,1806.2,1805.8,2.07264802]
[1745593960949,0.8294,1806.1,1805.8,2.07264802]
[1745593961910,0.8294,1806.1,1805.4,8.39964802]
[1745593962245,0.8294,1806.1,1805.2,6.326]
[1745593962403,0.8294,1806.1,1805.3,0.05538152]
[1745593962740,0.8294,1806.1,1805.3,0.7934]
[1745593962930,1.13790725,1806.1,1805.5,6.44132155]
[1745593963127,1.13790725,1806.1,1805.6,6.326]
[1745593963327,1.13790725,1806.1,1805.6,8.39864802]
[1745593963527,1.13790725,1806.1,1805.7,0.8398648]
[1745593963727,0.8294,1806.1,1805.7,0.8398648]
[1745593963966,0.8294,1806.1,1805.6,2.07264802]
[1745593964121,0.8294,1806.1,1805.3,0.7934]
[1745593964122,0.8273,1805.9,1805.3,2.07264802]
[1745593964519,5.9592322,1805.9,1805.3,2.07264802]
[1745593964718,1.07050725,1805.8,1805.0,6.325]
[1745593964919,1.07050725,1805.8,1804.8,2.47948891]
[1745593964920,0.762,1805.7,1804.9,0.05538959]
[1745593965229,0.762,1805.7,1804.9,1.24137737]
[1745593965433,0.762,1805.7,1804.9,0.55]
[1745593966324,0.762,1805.7,1804.8,5.47948891]
[1745593968124,1.07050725,1805.7,1804.8,5.47948891]
[1745593969064,0.7791,1805.6,1804.8,5.47948891]
[1745593970446,0.7791,1805.6,1804.8,2.07264802]
[1745593970630,0.7791,1805.6,1804.8,8.39864802]
[1745593970830,0.7791,1805.6,1804.8,2.07264802]
[1745593971445,0.7581,1805.5,1804.8,2.07264802]
[1745593972182,0.7581,1805.5,1804.3,0.5]
[1745593972183,7.21834041,1805.3,1804.5,2.07264802]
[1745593972496,0.7581,1805.1,1804.3,0.5]
[1745593972998,10.04783404,1805.2,1804.3,0.5]
[1745593972999,0.7581,1804.9,1804.3,0.5]
[1745593973285,0.7902,1804.8,1804.3,0.5]
[1745593973641,1.09870725,1804.8,1804.3,0.5]
[1745593974637,0.7902,1804.8,1804.4,6.313]
[1745593974857,0.7902,1804.8,1804.5,0.6313]
[1745593975059,0.7902,1804.8,1804.4,6.313]
[1745593978189,0.7902,1804.8,1804.3,0.5]
[1745593980101,0.7902,1804.8,1804.3,2.57264802]
[1745593980428,0.7902,1804.8,1804.4,0.05540442]
[1745593980634,0.7902,1804.8,1804.3,2.57264802]
[1745593981287,0.8098,1804.7,1804.3,0.5]
[1745593981487,1.19078,1804.7,1804.3,0.5]
[1745593981723,0.8098,1804.7,1804.3,0.5]
[1745593982715,0.8098,1804.7,1804.4,0.0554114]
[1745593983039,0.8098,1804.7,1804.4,2.07264802]
[1745593984422,0.8098,1804.7,1804.5,0.05540385]
[1745593984627,0.8098,1804.7,1804.4,2.07264802]
[1745593990039,0.8098,1804.7,1804.3,0.5]
[1745593990363,0.7516,1804.5,1804.3,0.5]
[1745593990580,1.26654112,1804.5,1804.3,0.5]
[1745593990775,0.51494112,1804.5,1804.3,0.5]
[1745593990935,0.8304,1804.4,1804.3,0.5]
[1745593991262,1.34534112,1804.4,1804.3,0.5]
[1745593992552,0.8304,1804.4,1804.3,0.5]
[1745593993486,1.34534112,1804.4,1804.3,0.5]
[1745593995679,0.51494112,1804.4,1804.3,0.5]
[1745593995861,0.51494112,1804.4,1804.3,7.27804564]
[1745593996063,0.51494112,1804.8,1804.3,8.21311501]
[1745593996301,0.51494112,1804.7,1804.4,0.05540362]
[1745593996458,0.51494112,1804.8,1804.3,8.21311501]
[1745593997287,0.51494112,1804.8,1804.4,3.05540415]
[1745593997459,1.13960725,1805.2,1804.4,3.05540415]
[1745593997662,1.13960725,1805.2,1804.5,6.62054042]
[1745593997863,0.51643751,1805.1,1804.7,6.77554564]
[1745593998063,0.51643751,1805.1,1804.9,5.96864564]
[1745593998303,0.51643751,1805.1,1805.0,0.05538941]
[1745593998488,0.51643751,1805.1,1805.0,0.86505772]
[1745593998811,0.51643751,1805.4,1805.0,0.80966831]
[1745593998961,0.51643751,1805.4,1804.9,2.07264802]
[1745593999167,0.51643751,1805.3,1805.0,0.05538829]
[1745593999871,0.51643751,1805.4,1804.9,2.07264802]
[1745594000374,0.51643751,1805.3,1804.9,2.07264802]
[1745594000564,0.51643751,1805.3,1805.0,6.314]
[1745594000765,0.51643751,1805.3,1805.1,0.6314]
[1745594001074,0.51643751,1805.4,1805.1,0.6314]
[1745594001276,0.51643751,1805.3,1805.0,6.314]
[1745594001571,0.51643751,1805.4,1805.0,6.314]
[1745594002178,0.51643751,1805.3,1805.0,6.314]
[1745594002408,0.51643751,1805.3,1805.1,0.05539381]
[1745594002578,0.51643751,1805.3,1805.0,6.314]
[1745594002775,0.51643751,1805.2,1805.0,6.314]
[1745594003375,0.51643751,1805.4,1805.0,6.314]
[1745594003797,0.51643751,1805.3,1805.0,6.314]
[1745594004113,0.51643751,1805.2,1805.0,6.314]
[1745594004409,0.809,1805.1,1804.6,11.37264802]
[1745594004615,0.51643751,1805.0,1804.6,2.07264802]
[1745594004806,0.51643751,1805.0,1804.4,0.05540088]
[1745594005178,0.51643751,1804.9,1804.4,0.05540088]
[1745594005374,0.51643751,1804.9,1804.4,0.8344479]
[1745594005578,0.51643751,1805.0,1804.4,0.8344479]
[1745594005778,0.51643751,1805.0,1804.4,9.80309354]
[1745594005975,0.51643751,1805.0,1804.5,2.87384802]
[1745594006207,0.51643751,1805.0,1804.6,0.34278136]
[1745594006412,0.51643751,1805.0,1804.6,0.69813032]
[1745594006618,1.32543751,1805.1,1804.6,0.2873848]
[1745594007321,0.8206,1805.3,1804.6,6.31142723]
[1745594007482,1.30933751,1805.5,1804.8,6.77974564]
[1745594007815,1.30933751,1805.5,1804.7,5.62264802]
[1745594007816,0.51643751,1805.5,1805.2,5.96864564]
[1745594008001,0.30850725,1805.6,1805.2,5.96864564]
[1745594008002,0.30850725,1805.6,1805.4,5.96864564]
[1745594008175,0.30850725,1805.6,1805.5,0.05536938]
[1745594008376,0.30850725,1805.6,1805.5,0.60536938]
[1745594008579,0.7746,1806.1,1805.5,0.60536938]
[1745594008814,1.31613751,1806.4,1805.7,6.78074564]
[1745594009007,1.31613751,1806.4,1805.8,0.67807456]
[1745594009310,1.31613751,1806.4,1805.7,0.8121]
[1745594009735,1.31613751,1806.4,1805.8,0.05536054]
[1745594009919,0.51643751,1806.4,1805.8,0.05536054]
[1745594010120,0.82494476,1806.5,1805.7,0.8121]
[1745594010429,0.8124,1806.4,1805.6,5.07264802]
[1745594010638,0.8124,1806.4,1805.7,0.5072648]
[1745594010929,0.8124,1806.4,1805.6,2.07264802]
[1745594011130,0.51643751,1806.3,1805.6,2.12801568]
[1745594011335,0.51643751,1806.3,1805.6,8.42701568]
[1745594011799,0.51643751,1806.3,1805.6,8.85136461]
[1745594012000,0.51643751,1806.3,1805.7,5.96864564]
[1745594012200,0.51643751,1806.3,1805.8,0.59686456]
[1745594012512,0.8124,1806.4,1805.8,0.59686456]
[1745594014204,0.8124,1806.4,1805.9,0.88185789]
[1745594014432,0.51643751,1806.6,1805.9,0.88185789]
[1745594014642,4.61034476,1806.7,1805.9,0.88185789]
[1745594014935,5.3609508,1806.7,1805.9,0.88185789]
[1745594015108,5.3609508,1806.7,1805.9,0.8265]
[1745594015310,5.05244355,1806.7,1805.9,2.89914802]
[1745594016206,5.05244355,1806.7,1806.0,0.05535586]
[1745594016408,4.30183751,1806.7,1805.9,8.92314652]
[1745594016610,0.51643751,1806.7,1806.1,5.96864564]
[1745594016810,2.89571564,1806.8,1806.3,0.7557]
[1745594017271,2.89571564,1806.8,1806.2,8.37064802]
[1745594017479,0.28957156,1806.7,1806.2,2.07264802]
[1745594018294,0.7985,1806.6,1805.9,8.36964802]
[1745594018571,3.7658,1806.4,1805.9,2.07264802]
[1745594018876,0.7658,1806.4,1805.9,2.07264802]
[1745594019077,4.27812443,1806.4,1805.9,2.07264802]
[1745594019239,0.41881244,1806.3,1805.9,2.07264802]
[1745594019441,4.27812443,1806.4,1805.5,0.41439054]
[1745594019442,4.27812443,1806.4,1805.6,2.07264802]
[1745594019754,4.26912443,1806.4,1805.6,2.07264802]
[1745594020270,4.26012443,1806.4,1805.6,2.07264802]
[1745594020701,4.25112443,1806.4,1805.6,2.07264802]
[1745594021372,4.25112443,1806.4,1805.4,0.8157]
[1745594021373,3.0,1806.2,1805.4,0.8157]
[1745594021588,0.291,1806.1,1805.4,0.71127]
[1745594021752,3.0,1806.0,1805.3,6.297]
[1745594021966,3.0,1805.6,1804.8,0.8078]
[1745594022289,0.51232443,1805.6,1804.9,0.05539067]
[1745594022463,0.51232443,1805.6,1804.8,0.8078]
[1745594022790,3.81990954,1805.8,1804.9,0.05539067]
[1745594022985,3.82113593,1805.8,1804.9,0.05539067]
[1745594023847,0.82113593,1805.8,1804.9,5.12803869]
[1745594024080,0.30758511,1805.8,1805.1,0.8152]
[1745594024291,0.30758511,1805.8,1805.2,6.35237363]
[1745594024705,0.30758511,1805.8,1805.2,6.297]
[1745594024905,0.8075,1806.0,1805.2,6.297]
[1745594025110,3.8075,1806.0,1805.2,6.297]
[1745594025412,0.51419313,1805.9,1805.3,0.6297]
[1745594025797,1.30469313,1805.8,1805.2,6.297]
[1745594026370,0.7905,1805.8,1805.2,6.297]
[1745594027206,1.30469313,1805.8,1805.2,6.297]
[1745594027393,0.7905,1805.8,1805.2,6.297]
[1745594027898,0.7905,1805.8,1805.3,0.05537953]
[1745594028097,0.7905,1805.8,1805.3,0.69061748]
[1745594028308,1.30469313,1805.8,1805.3,0.69061748]
[1745594028476,1.30469313,1805.8,1805.3,0.63523795]
[1745594028673,0.7905,1805.8,1805.3,0.63523795]
[1745594029521,1.31909313,1806.0,1805.3,0.63523795]
[1745594029724,0.51419313,1806.0,1805.5,0.55]
[1745594029880,0.82177824,1806.2,1805.6,6.85150865]
[1745594030074,0.82177824,1806.2,1805.7,8.37064802]
[1745594030421,0.30758511,1806.2,1805.7,8.37064802]
[1745594030602,0.5149775,1806.4,1805.7,8.37064802]
[1745594030790,0.5149775,1806.4,1805.7,2.07264802]
[1745594030989,0.5149775,1806.4,1805.7,8.66066282]
[1745594031201,0.5149775,1806.3,1805.7,8.66066282]
[1745594031409,0.8049,1806.2,1805.4,9.19814802]
[1745594031625,0.5149775,1806.1,1805.4,9.19814802]
[1745594031836,0.5149775,1806.1,1805.4,8.37064802]
[1745594032004,0.8049,1806.0,1805.4,8.42602423]
[1745594032205,0.5149775,1805.9,1805.5,0.84260242]
[1745594032828,1.3198775,1806.0,1805.5,0.84260242]
[1745594033430,0.5149775,1805.9,1805.5,0.84260242]
[1745594034087,0.5149775,1805.8,1805.4,2.07264802]
[1745594034803,0.5149775,1805.7,1805.4,2.07264802]
[1745594035126,0.5149775,1805.9,1805.4,2.07264802]
[1745594035719,0.30758511,1805.8,1805.4,2.07264802]
[1745594035914,0.82256261,1805.8,1805.4,2.07264802]
[1745594036458,0.5149775,1805.7,1805.4,2.07264802]
[1745594036835,0.5149775,1805.6,1805.4,2.07264802]
[1745594037227,0.30758511,1805.8,1805.5,0.05538161]
[1745594037428,0.30758511,1805.8,1805.6,0.799]
[1745594037650,0.30758511,1805.8,1805.7,2.12801334]
[1745594037960,0.30758511,1805.8,1805.7,8.70271195]
[1745594038162,0.51620644,1806.2,1805.7,8.70271195]
[1745594038365,0.7968,1806.3,1805.8,0.05536134]
[1745594038533,0.7968,1806.3,1805.7,8.64734935]
[1745594038739,0.7968,1806.3,1805.7,9.05713027]
[1745594039060,0.30758511,1806.4,1805.8,0.90571303]
[1745594039422,0.30758511,1806.4,1805.8,0.9610691]
[1745594039653,0.8059,1806.5,1805.8,0.9610691]
[1745594039846,0.8059,1806.5,1805.8,0.90571303]
[1745594040468,0.30758511,1806.4,1805.8,0.90571303]
[1745594040621,0.30758511,1806.4,1805.7,8.35464802]
[1745594040828,0.7624,1806.3,1805.7,8.35464802]
[1745594041056,0.30758511,1806.2,1805.7,8.35464802]
[1745594041444,0.30758511,1806.2,1805.7,8.77613815]
[1745594041658,0.30758511,1806.2,1805.8,0.05536314]
[1745594042000,0.30758511,1806.2,1805.8,3.01116129]
[1745594042121,0.7624,1806.3,1805.8,2.95579815]
[1745594042323,0.7866,1806.6,1806.0,0.8285]
[1745594042639,0.7866,1806.6,1806.1,0.05535347]
[1745594042968,0.30758511,1806.5,1805.8,2.95579815]
[1745594043149,0.30758511,1806.5,1805.9,0.29557982]
[1745594043368,0.30758511,1806.5,1806.0,0.05536147]
[1745594043754,0.30758511,1806.5,1805.9,0.29557982]
[1745594043976,0.7866,1806.6,1805.8,2.95579815]
[1745594043977,0.8137,1806.3,1805.8,2.95579815]
[1745594044138,0.8137,1806.3,1805.8,2.07264802]
[1745594044584,0.8137,1806.3,1805.9,0.05536516]
[1745594044788,0.7529,1806.6,1805.9,2.12801318]
[1745594044985,0.7529,1806.6,1805.9,2.07264802]
[1745594045146,0.7529,1806.6,1805.9,8.04129366]
[1745594045349,0.30758511,1806.7,1806.3,5.96864564]
[1745594045543,0.30758511,1806.7,1806.5,0.8189]
[1745594045757,0.30758511,1806.7,1806.4,2.12798972]
[1745594045959,0.8529,1806.9,1806.4,2.07264802]
[1745594046282,0.1,1806.9,1806.4,2.12799067]
[1745594046488,0.1,1806.9,1806.5,0.7993]
[1745594046685,0.1,1806.9,1806.6,0.05534071]
[1745594047360,0.1,1806.9,1806.5,0.7993]
[1745594047571,0.1,1806.9,1806.7,2.07264802]
[1745594048291,0.1,1806.9,1806.8,0.8249]
[1745594048491,0.1,1806.9,1806.8,9.46730282]
[1745594048658,0.1,1806.9,1806.8,19.45993994]
[1745594048855,0.1,1806.9,1806.8,19.4046137]
[1745594050100,0.1,1806.9,1806.8,12.88596806]
[1745594050394,0.1,1806.9,1806.8,9.88596806]
[1745594051397,0.1,1806.9,1806.8,2.07264802]
[1745594051699,0.1,1806.9,1806.6,6.279]
[1745594052201,0.1,1806.9,1806.7,0.05533975]
[1745594052509,0.1,1806.9,1806.6,12.24764564]
[1745594052797,0.1,1806.9,1806.7,3.055329]
[1745594052998,0.1,1806.9,1806.8,6.72758092]
[1745594053213,0.1,1806.9,1806.8,12.69622656]
[1745594053409,0.1,1806.9,1806.8,6.17758092]
[1745594053766,0.1,1806.9,1806.8,2.37818092]
[1745594053964,0.1,1806.9,1806.8,8.35164802]
[1745594055284,0.8875,1806.9,1806.8,6.279]
[1745594057169,0.8875,1806.9,1806.5,2.07264802]
[1745594057371,0.7832,1806.8,1806.2,2.07264802]
[1745594058589,0.7832,1806.8,1806.3,0.8286]
[1745594058791,0.1,1806.9,1806.7,5.96864564]
[1745594058966,0.1,1806.9,1806.7,6.75124564]
[1745594059301,0.1,1806.9,1806.8,0.05532959]
[1745594059506,0.1,1806.9,1806.8,0.47746032]
[1745594059804,0.1,1806.9,1806.8,1.20033092]
[1745594059991,0.1,1806.9,1806.8,1.14500133]
[1745594060162,0.1,1806.9,1806.8,0.7228706]
[1745594060366,0.1,1806.9,1806.4,19.45924802]
[1745594061527,0.1,1806.9,1806.4,19.87116993]
[1745594062984,0.8213,1806.8,1806.4,18.67664802]
[1745594063432,0.8213,1806.8,1806.4,2.07264802]
[1745594063635,0.8213,1806.8,1806.1,8.35064802]
[1745594063936,0.908,1806.9,1806.2,0.8350648]
[1745594064424,0.908,1806.9,1806.3,0.82864357]
[1745594064630,0.1,1806.9,1806.7,5.96864564]
[1745594064783,0.1,1806.9,1806.8,6.263]
[1745594065578,0.1,1806.9,1806.8,10.5863]
[1745594065917,0.1,1806.9,1806.8,12.44905937]
[1745594066120,0.1,1806.9,1806.8,14.52170739]
[1745594067116,0.1,1806.9,1806.8,14.93805817]
[1745594067625,0.1,1806.9,1806.8,8.67505817]
[1745594067781,0.1,1806.9,1806.8,13.0742988]
[1745594067991,0.1,1806.9,1806.8,19.52161247]
[1745594069687,0.1,1806.9,1806.8,13.0742988]
[1745594069880,0.1,1806.9,1806.8,16.52161247]
[1745594070322,0.1,1806.9,1806.8,19.52161247]
[1745594070517,0.1,1806.9,1806.8,21.47377372]
[1745594076409,0.7922,1807.7,1806.9,4.3501]
[1745594076604,0.1,1807.9,1807.4,3.8001]
[1745594076807,0.1,1807.9,1807.5,8.33364802]
[1745594077220,0.8286,1807.8,1807.5,8.33364802]
[1745594077414,0.8286,1807.8,1807.5,9.5223262]
[1745594077637,0.1,1807.9,1807.5,9.5223262]
[1745594078122,0.1,1807.9,1807.5,9.87230164]
[1745594078514,0.1,1807.9,1807.5,2.07264802]
[1745594078846,0.1,1807.9,1807.5,8.38796244]
[1745594079053,0.1,1807.9,1807.5,8.33264802]
[1745594079612,0.1,1807.9,1807.6,3.05530517]
[1745594080450,0.1,1807.9,1807.6,3.0]
[1745594080614,0.1,1807.9,1807.6,4.1332648]
[1745594081159,0.1,1807.9,1807.7,0.05530589]
[1745594084867,0.1,1807.9,1807.6,4.18857081]
[1745594088470,0.1,1807.9,1807.6,6.26121883]
[1745594089129,0.1,1807.9,1807.6,6.26121779]
[1745594089332,0.1,1807.9,1807.7,0.62612178]
[1745594089533,0.1,1807.9,1807.8,5.67794667]
[1745594089757,0.1,1807.9,1807.8,6.51084667]
[1745594089963,0.1,1807.9,1807.8,2.96084667]
[1745594090284,0.1,1807.9,1807.8,2.07264802]
[1745594090436,0.1,1807.9,1807.8,2.12794721]
[1745594090832,0.1,1807.9,1807.8,8.33164802]
[1745594091068,0.3571,1808.2,1807.8,2.07264802]
[1745594093369,0.3571,1808.2,1807.8,2.90581282]
[1745594094335,0.3571,1808.2,1807.9,0.05530426]
[1745594094537,0.3571,1808.2,1807.8,2.96111708]
[1745594094847,0.3571,1808.2,1807.8,2.90581282]
[1745594096277,0.3571,1808.2,1807.9,0.0553043]
[1745594096481,0.3571,1808.2,1807.9,0.35141601]
[1745594096781,0.3571,1808.2,1807.9,0.29611171]
[1745594097338,0.3571,1808.2,1807.8,2.07264802]
[1745594099573,0.8255,1808.1,1807.8,2.07264802]
[1745594099770,0.8255,1808.1,1807.5,6.242]
[1745594100280,0.8255,1808.1,1807.6,0.05531348]
[1745594100582,0.8255,1808.1,1807.5,6.29731348]
[1745594100782,0.8255,1808.1,1807.5,6.29731356]
[1745594100985,0.8255,1808.1,1807.5,6.65970576]
[1745594101289,0.8255,1808.1,1807.6,0.7212789]
[1745594101652,0.8255,1808.1,1807.6,6.66711149]
[1745594101988,0.8255,1808.1,1807.6,0.66597058]
[1745594102282,0.8255,1808.1,1807.5,6.242]
[1745594102483,0.8255,1808.1,1807.4,2.07264802]
[1745594102484,5.94583318,1808.0,1807.4,2.07264802]
[1745594102697,0.8015,1807.9,1807.4,2.07264802]